Cogmind - Beta 15 @@@ ROGUE MODE // 2025.05.03 @ 16:55:43 Player: saltine Result: Destroyed by H-66 Slayer with Gauss Rifle Performance ------------- Evolutions (4) 2000 Regions Visited (18) 3600 Robots Destroyed (420) 2100 Value Destroyed (15639) 15639 Prototype IDs (58) 1160 Alien Tech Used (0) 0 Bonus (12417) 12417 TOTAL SCORE: 36916 Bonus ------- Triggered High Security 1000 High Alert Combat Kills 9377 Follower Combat Kills 1838 Entered Garrisons 200 Aligned with FarCom 300 Met Data Miner 300 Acquired ECA 300 Friendly Fire -898 Cogmind --------- Core Integrity 0/850 Matter 198/300 Energy 100/100 System Corruption 4% Temperature Cool (27) Movement Core (1350) Ox26 Location -6/Factory Parts ------- > --- POWER (2) -------- (None) > --- PROPULSION (4) --- (None) > --- UTILITY (7) ------ Huge Storage Unit > --- WEAPON (2) ------- (None) > --- INVENTORY (25) --- Compact Wheel Improved Cryofiber Web Advanced Heat Sink Improved Cooling System Large Battery (200) Energy Well (350) Energy Well (322) Matter Compressor (0) Matter Compressor (0) Launcher Loader High-powered Tractor Beam Improved Proton Missile Launcher Peak State ------------ > --- POWER ------------ Light Fission Core Antimatter Reactor > --- PROPULSION ------- Armored Treads Improved Medium Treads Heavy Treads > --- UTILITY ---------- Huge Storage Unit Launcher Loader Heavy Reactive Plating Powered Armor Improved Hardlight Generator > --- WEAPON ----------- HERF Cannon Antimatter Cannon > --- INVENTORY -------- Improved Deuterium Engine Reinforced Deuterium Engine Angular Momentum Engine Medium Treads Cooled VTOL Module Cooled VTOL Module Improved Cryofiber Web Advanced Heat Sink Advanced Heat Sink Improved Cooling System Large Battery Energy Well Matter Compressor Matter Compressor Improved Weapon Shielding Improved Medium Armor Plating Improved Medium Armor Plating Improved Heavy Armor Plating High-powered Tractor Beam Improved EM Pulse Cannon Antimatter Cannon Improved Proton Missile Launcher Long-range Missile Launcher Long-range Missile Launcher [Rating: 86] Favorites ----------- Power Improved Deuterium Engine Engine Improved Deuterium Engine Power Core Nuclear Core Reactor Antimatter Reactor Propulsion Improved Medium Treads Treads Improved Medium Treads Leg Aluminum Leg Wheel Armored Huge Wheel Flight Unit Cooled VTOL Module Utility Hacking Suite Device Advanced Shield Generator Storage Huge Storage Unit Processor Transport Network Coupler Hackware Hacking Suite Protection Powered Armor Weapon Heavy Assault Rifle Energy Gun Improved EM Shotgun Energy Cannon Neutron Cannon Ballistic Gun Heavy Assault Rifle Ballistic Cannon Gauss Cannon Launcher Proton Missile Launcher Slashing Weapon Axe Special Melee Weapon Improved Datajack Build | -11 -10 -10 -9 -9 -9 -8 -8 -8 -7 -7 -7 -7 -7 -7 -6 -6 -6 -6 ------- Run | Yrd Mat Min Mat Min Exi Min Mat Gar Fac Was Fac Low Low Dat Pro Fac Was Fac Slots Evolved 8 | . . . 2 . . . 2 . 2 . . . . . . 2 . . Power 1 | . . . . . . . . . . . . . . . . 1 . . Propulsion 2 | . . . 1 . . . . . 1 . . . . . . . . . Utility 5 | . . . 1 . . . 2 . 1 . . . . . . 1 . . Weapon . | . . . . . . . . . . . . . . . . . . . Parts Attached 208 | 1 11 2 27 2 1 1 3 7 13 3 42 5 . . 12 22 6 50 Power 20 | . 1 . 2 . . . . 1 1 . 4 1 . . 1 3 . 6 Engine 13 | . 1 . 1 . . . . . . . 2 1 . . 1 3 . 4 Core 6 | . . . 1 . . . . 1 1 . 2 . . . . . . 1 Reactor 1 | . . . . . . . . . . . . . . . . . . 1 Propulsion 48 | . 3 . 12 1 . . 1 2 3 1 11 1 . . . 4 . 9 Treads 29 | . 3 . 11 1 . . 1 2 . . 4 . . . . 3 . 4 Leg . | . . . . . . . . . . . . . . . . . . . Wheel 4 | . . . . . . . . . . . 2 . . . . . . 2 Hover . | . . . . . . . . . . . . . . . . . . . Flight 15 | . . . 1 . . . . . 3 1 5 1 . . . 1 . 3 Utility 93 | 1 4 1 8 . . . 1 3 7 1 17 2 . . 5 13 3 27 Device 32 | 1 . 1 3 . . . . . 1 . 6 1 . . 3 6 2 8 Storage 10 | . 3 . 1 . . . . . . . 1 . . . . 1 . 4 Processor 4 | . . . . . . . . . 2 . . . . . . 1 . 1 Hackware 18 | . . . . . . . . 1 2 . 4 . . . . 5 . 6 Protection 29 | . 1 . 4 . . . 1 2 2 1 6 1 . . 2 . 1 8 Artifact . | . . . . . . . . . . . . . . . . . . . Weapon 47 | . 3 1 5 1 1 1 1 1 2 1 10 1 . . 6 2 3 8 Energy Gun 2 | . . . 1 . 1 . . . . . . . . . . . . . Energy Cannon 7 | . . . . . . 1 . 1 1 1 . 1 . . . 1 . 1 Ballistic Gun 9 | . 2 1 4 . . . 1 . . . 1 . . . . . . . Ballistic Cannon 7 | . . . . . . . . . . . 2 . . . 2 . 1 2 Launcher 16 | . 1 . . 1 . . . . . . 5 . . . 4 . 1 4 Special Weapon . | . . . . . . . . . . . . . . . . . . . Impact Weapon . | . . . . . . . . . . . . . . . . . . . Slashing Weapon 5 | . . . . . . . . . 1 . 2 . . . . . 1 1 Piercing Weapon . | . . . . . . . . . . . . . . . . . . . Special Melee Weapon 1 | . . . . . . . . . . . . . . . . 1 . . Unidentified Prototypes 11 | . . 1 2 . . . . . . 2 2 . . . 2 . 1 1 Corrupted Parts 3 | . . . . . . . . . . . 1 1 . . 1 . . . System Corruption 12 | . . . . . . . . . . . 6 4 . . 2 . . . Parts Lost 61 | . 5 . 1 . . . . 10 . . 9 . . . 3 7 1 25 Power 10 | . 1 . . . . . . 1 . . 1 . . . 1 2 . 4 Propulsion 13 | . 1 . . . . . . 2 . . 3 . . . . 3 . 4 Utility 27 | . 1 . 1 . . . . 6 . . 5 . . . 2 2 . 10 Weapon 11 | . 2 . . . . . . 1 . . . . . . . . 1 7 Highest Loss Streak 16 | . 3 . 1 . . . . 3 . . 5 . . . 2 3 1 16 To Critical Strikes . | . . . . . . . . . . . . . . . . . . . Average Backups 16 | 6 10 14 19 20 20 20 18 17 5 5 16 23 24 24 23 3 4 15 Power 1 | 1 1 1 1 1 1 1 1 . . . 1 2 2 2 1 . 1 1 Propulsion 2 | 4 3 5 6 5 5 5 5 5 . . 1 4 5 5 6 . . 1 Utility 7 | . 3 3 5 8 8 8 6 4 3 3 9 11 11 11 9 2 2 9 Weapon 4 | 1 2 5 6 6 6 6 6 6 1 2 3 4 5 5 5 . 1 3 Tool/Special . | . . . . . . . . . . . . . . . . . . . Unused Backups 75 | 6 10 . 14 2 1 . . . 5 1 10 2 . . . 4 1 19 Power 8 | 1 1 . 1 . . . . . . . 2 1 . . . . 1 1 Propulsion 16 | 2 3 . 5 . . . . . 3 . . . . . . . . 3 Utility 29 | 1 4 . 1 2 1 . . . 1 1 5 . . . . 2 . 11 Weapon 22 | 2 2 . 7 . . . . . 1 . 3 1 . . . 2 . 4 Tool/Special . | . . . . . . . . . . . . . . . . . . . Average Slot Usage (%) 87 | . 91 100 98 100 80 100 99 69 57 95 90 84 84 76 83 75 78 82 Engine 4 | . 13 14 1 . . . . . . . 5 1 7 7 6 5 11 5 Core 3 | . . . 9 11 11 11 9 4 2 7 1 5 . . . 2 . 1 Treads 16 | . 20 28 32 33 33 33 27 23 1 . 17 . . . . 1 . 12 Wheel 1 | . . . . . . . . . . . 1 15 15 15 15 . . . Flight 6 | . . . . . . . . . 18 30 8 . . . . 22 26 9 Device 8 | . 7 . 7 . . . 9 5 1 . 10 22 23 23 12 2 3 11 Storage 6 | . 14 14 11 11 11 11 9 9 . . 4 7 7 7 7 . 6 5 Hackware 8 | . . . . . . . . 1 16 23 12 . . . . 25 20 11 Protection 11 | . 2 14 13 22 22 22 26 9 7 7 10 15 15 15 24 . . 8 Energy Cannon 3 | . . . . . . 4 . 3 . 7 4 7 7 . 5 . . 2 Ballistic Gun 5 | . 24 28 21 22 2 6 17 8 . . . . . . . . . . Ballistic Cannon 1 | . . . . . . . . . . . 2 . . . 5 . 3 1 Launcher 1 | . . . . . . . . 2 . . 3 . . . . . . 3 Slashing Weapon 1 | . . . . . . . . . 1 7 2 6 7 7 2 5 5 2 Peak Build Rating 86 | 7 8 14 20 20 22 22 26 26 42 55 69 63 58 58 62 63 60 86 Average Rating 46 | 6 7 8 16 19 17 22 25 18 23 49 60 58 58 53 58 44 48 69 On Entrance 34 | 6 7 8 8 19 20 22 22 26 20 42 55 60 58 58 58 61 43 53 Naked Turns . | . . . . . . . . . . . . . . . . . . . Heaviest Build 195 | 13 31 32 63 63 63 64 70 70 57 39 158 156 136 136 180 180 35 195 Greatest Support 120 | 20 40 40 66 69 69 69 69 68 63 23 116 56 56 56 56 108 20 120 Greatest Overweight (x) 9 | . 1 . 1 . . . 1 1 . 1 5 4 2 2 3 3 1 9 Average Overweight (x) . | . . . . . . . 1 . . . . 2 2 2 2 . . . Largest Inventory Capacity 25 | 8 15 15 20 20 20 20 20 20 20 5 25 25 25 25 25 25 5 25 Average Capacity 17 | 8 11 15 19 20 20 20 20 20 5 5 19 25 25 25 25 5 5 18 Most Carried 25 | 6 15 15 20 20 20 20 20 20 15 5 25 25 25 25 25 24 5 25 Average Carried 17 | 6 10 14 19 19 19 20 18 17 5 4 18 24 25 25 24 4 5 16 Final Capacity 25 | 8 15 15 20 20 20 20 20 20 5 5 25 25 25 25 25 5 5 25 Final Carried 25 | 6 15 15 20 20 20 20 20 15 5 5 25 25 25 25 24 5 5 13 Class Distribution -------------------- 69% | Mutant 12% | Hacker-Sprinter 9% | Wizard-Sprinter 4% | Machinist-Mutant Dominant Class ---------------- Mutant | -10/Materials Mutant | -10/Mines Mutant | -9/Materials Mutant | -9/Mines Mutant | -9/Exiles Mutant | -8/Mines Mutant | -8/Materials Mutant | -8/Garrison Hacker-Mutant | -7/Factory Hacker-Mutant | -7/Waste Mutant | -7/Factory Mutant | -7/Lower Caves Mutant | -7/Lower Caves Mutant | -7/Data Miner Mutant | -6/Proximity Caves Hacker-Sprinter | -6/Factory Hacker-Mutant | -6/Waste Mutant | -6/Factory Resources | -11 -10 -10 -9 -9 -9 -8 -8 -8 -7 -7 -7 -7 -7 -7 -6 -6 -6 -6 ----------- Run | Yrd Mat Min Mat Min Exi Min Mat Gar Fac Was Fac Low Low Dat Pro Fac Was Fac Matter Collected 12585 | 231 417 200 1177 76 . 47 69 580 200 76 4209 213 38 . 671 622 379 3380 Remotely 3973 | . . . . . . . . . . . 2035 . . . 114 . . 1824 Salvage Created 14765 | 67 455 10 1194 154 . 72 117 437 148 . 5172 63 . . 224 450 43 6159 Parts 733 | 4 26 . 83 16 . 6 9 21 3 . 243 3 . . 24 29 . 266 Haulers Intercepted 16 | . 1 . 5 . . . . . 1 . 6 . . . . 1 . 2 Recyclers Shooed 8 | 1 . . 1 . . . . . . . 3 . . . . . . 3 Parts Field Recycled . | . . . . . . . . . . . . . . . . . . . Retrieved Matter . | . . . . . . . . . . . . . . . . . . . Parts Self-Destructed 25 | . . . . . . . . . . . . 4 . . 21 . . . Prevented 5 | . . . . . . . . . . . . 2 . . 3 . . . Kills | -11 -10 -10 -9 -9 -9 -8 -8 -8 -7 -7 -7 -7 -7 -7 -6 -6 -6 -6 ------- Run | Yrd Mat Min Mat Min Exi Min Mat Gar Fac Was Fac Low Low Dat Pro Fac Was Fac Combat Hostiles Destroyed 313 | . 12 . 26 7 . 1 5 20 . . 120 1 . . 13 7 . 101 Melee 1 | . . . . . . . . . . . 1 . . . . . . . Guns 48 | . 10 . 21 3 . . 5 9 . . . . . . . . . . Cannons 53 | . . . . . . 1 . . . . 26 1 . . 5 . . 20 AOE 184 | . 2 . 5 4 . . . 11 . . 89 . . . 8 7 . 58 Classes Destroyed 21 | 2 5 1 3 1 . 1 . 1 . . 3 . . . 2 1 . 1 Worker 16 | . . 1 1 . . 2 . . . . 7 . . . . 1 . 4 Builder 33 | . 1 . 2 . . . . . . . 16 . . . . 1 . 13 Tunneler 4 | 1 . . 1 . . . . . 1 . 1 . . . . . . . Hauler 16 | . 1 . 5 . . . . . 1 . 6 . . . . 1 . 2 Recycler 9 | 1 . . . . . . . . 1 . 2 . . . . 1 . 4 Mechanic 16 | . . . . . . . . . . . 11 . . . . . . 5 Operator 9 | . . . 2 . . . . . . . 1 . . . . 3 . 3 Drone 1 | . . . . . . . . . . . . . . . . 1 . . Watcher 7 | . . . 1 . . . . . . . 2 . . . . 2 . 2 Swarmer 35 | . 2 . 9 4 . . 4 8 . . . . . . 7 1 . . Saboteur 5 | . . . . . . . . . . . . . . . . . . 5 Grunt 151 | . 7 . 8 2 . . . 9 . . 65 . . . . . . 60 Brawler 16 | . . . . 1 . . . . . . 7 . . . . . . 8 Duelist 23 | . . . . . . . . . . . 12 . . . . . . 11 Protector 16 | . . . . . . . . . . . 10 . . . 1 . . 5 Sentry 14 | . . . 9 . . . 1 2 . . . 1 . . 1 . . . Demolisher 2 | . . . . . . . . . . . . . . . 2 . . . Hunter 23 | . . . . . . 1 . . . . 11 . . . 1 4 . 6 Programmer 23 | . . . . . . . . 1 . . 15 . . . . 1 . 6 Behemoth 1 | . . . . . . . . . . . . . . . 1 . . . Subdweller 3 | . 3 . . . . . . . . . . . . . . . . . Wasp 3 | . . . . . . . . . . . . . . . . . 3 . Best Kill Streak 16 | 1 6 1 7 4 . 2 4 5 2 . 16 1 . . 4 6 . 15 Combat Bots Only 15 | . 3 . 4 4 . 1 4 5 . . 15 1 . . 4 6 . 14 Max Kills in Single Turn 8 | 1 1 1 2 4 . 1 1 2 1 . 8 1 . . 2 2 3 3 Gunslinging 1 | . . . 1 . . . . . . . . . . . . . . . Exploded 7 | . 1 . 2 4 . . . 2 . . 7 . . . 2 2 . 3 Melee 1 | . . . . . . . . . . . 1 . . . . . . . Uniques/NPCs Destroyed . | . . . . . . . . . . . . . . . . . . . Combat | -11 -10 -10 -9 -9 -9 -8 -8 -8 -7 -7 -7 -7 -7 -7 -6 -6 -6 -6 -------- Run | Yrd Mat Min Mat Min Exi Min Mat Gar Fac Was Fac Low Low Dat Pro Fac Was Fac Hostile Shots Fired 1512 | . 77 9 100 12 . . 26 142 . . 416 45 . . 139 122 . 424 Missed 468 | . 25 3 38 6 . . 7 42 . . 135 14 . . 46 48 . 104 Hits 1044 | . 52 6 62 6 . . 19 100 . . 281 31 . . 93 74 . 320 Melee 38 | . . . . . . . . . . . 13 . . . . . . 25 Projectile 1006 | . 52 6 62 6 . . 19 100 . . 268 31 . . 93 74 . 295 AOE 3 | . . . . . . . . . . . . . . . 3 . . . Critical Strikes 35 | . 1 . 1 . . . . 3 . . 14 . . . . 2 . 14 Part Disruptions 2 | . . . . . . . . . . . 1 1 . . . . . . Damage Taken 16340 | . 741 82 851 63 . . 215 1373 72 . 4191 198 . . 1390 1128 40 5996 Core 1651 | . 130 . 41 9 . . . 126 36 . 286 14 . . 139 283 26 561 Absorbed by Shields 1838 | . . . . . . . . . . . 849 40 . . 163 . . 786 Reduced by Siege Mode 185 | . . . . . . . . . . . . . . . . . . 185 Redirected to Shielding 104 | . . . . . . . . . . . . . . . . . . 104 Ignored by Resistances 617 | . . . . . . . . . . . 182 38 . . 397 . . . Regen/Repaired (Parts) 1580 | . 108 . 43 . . . . . 74 285 618 . . . . 367 85 . Core Remaining (%) 68 | 100 . 48 . . . 87 . 77 . . . . . . 32 . . . Volleys Fired 956 | 6 52 4 75 7 . 1 13 82 . 3 397 4 1 . 46 10 . 255 Largest 2 | 2 2 2 2 2 . 2 2 2 . 1 2 2 1 . 2 1 . 2 Hottest 175 | 40 40 40 46 46 . 101 46 101 . 80 130 175 85 . 134 39 . 127 Shots Fired 1240 | 12 96 9 146 13 . 2 26 132 . 3 433 7 4 . 78 10 1 268 Gun 397 | 12 93 9 141 12 . 1 26 103 . . . . . . . . . . Cannon 566 | . . . . . . 1 . 11 . 3 320 7 4 . 64 . . 156 Launcher 277 | . 3 . 5 1 . . . 18 . . 113 . . . 14 10 1 112 Special . | . . . . . . . . . . . . . . . . . . . Kinetic 610 | 12 93 9 141 12 . . 26 95 . . 115 . . . 35 . . 72 Thermal 254 | . . . . . . . . 6 . 3 205 7 4 . 29 . . . Explosive 152 | . 3 . 5 1 . . . 18 . . 58 . . . 9 10 1 47 Electromagnetic 224 | . . . . . . 2 . 13 . . 55 . . . 5 . . 149 Robot Hit Streak 19 | 7 11 6 9 7 . 6 10 11 . . 8 3 . . 17 2 . 19 Robot Miss Streak 5 | 5 3 3 3 2 . . 2 3 . . 4 2 . . 3 . 1 3 Penetration Max 1 | . . . . . . . . . . . 1 . . . . . . . Secondary Targets 8 | . 4 . 2 . . . . 2 . . . . . . . . . . Max Gunslinging Chain 1 | . 1 . 1 . . . . 1 . . . . . . . . . . Shots Hit Robots 733 | 7 66 6 87 8 . 2 16 58 8 . 209 3 . . 54 22 . 187 Core Hits 796 | 3 25 3 54 8 . 5 6 36 2 . 341 2 . . 27 22 6 256 Critical Kills 3 | . 1 . 2 . . . . . . . . . . . . . . . Critical Parts Destroyed 2 | . 1 . . . . . . 1 . . . . . . . . . . Critical Strikes 24 | . 2 . 2 . . . . 1 3 . 9 . . . 1 1 . 5 Destroy 5 | . 2 . 2 . . . . 1 . . . . . . . . . . Blast 12 | . . . . . . . . . . . 7 . . . 1 . . 4 Sever 7 | . . . . . . . . . 3 . 2 . . . . 1 . 1 Melee Attacks 382 | . . . . . . . . . 10 2 143 15 8 . . 95 1 108 Impact . | . . . . . . . . . . . . . . . . . . . Slashing 381 | . . . . . . . . . 10 2 143 15 8 . . 94 1 108 Piercing . | . . . . . . . . . . . . . . . . . . . Sneak Attacks 26 | . . . . . . . . . 3 . 8 . . . . 8 . 7 Combat Hostiles . | . . . . . . . . . . . . . . . . . . . Follow-up Attacks . | . . . . . . . . . . . . . . . . . . . Damage Inflicted 50263 | 105 1071 79 1799 318 . 138 245 2084 468 . 20970 110 . . 2412 2168 543 17753 Guns 3425 | 98 801 63 1259 105 . 23 230 846 . . . . . . . . . . Cannons 9977 | . . . . . . 25 . 18 . . 4449 110 . . 1431 . . 3944 Explosions 32764 | . 267 . 482 208 . . . 1220 . . 15307 . . . 981 1008 543 12748 Melee 3893 | . . . . . . . . . 468 . 1204 . . . . 1160 . 1061 Ramming 204 | 7 3 16 58 5 . 90 15 . . . 10 . . . . . . . Kinetic 7816 | 98 801 63 1259 105 . . 230 768 . . 1914 . . . 731 . . 1847 Thermal 5011 | . . . . . . . . 47 . . 3232 110 . . 700 . . 922 Explosive 22937 | . 267 . 482 208 . . . 1173 . . 11064 . . . 853 1008 543 7339 Electromagnetic 10402 | . . . . . . 48 . 96 . . 3546 . . . 128 . . 6584 Impact . | . . . . . . . . . . . . . . . . . . . Slashing 3893 | . . . . . . . . . 468 . 1204 . . . . 1160 . 1061 Piercing . | . . . . . . . . . . . . . . . . . . . Highest Corruption 19 | . 2 2 1 1 1 1 . 4 . . 13 17 17 17 19 6 6 6 Average Corruption 6 | . 2 2 1 1 1 1 . 3 . . 8 17 17 17 18 4 6 2 Corruption Purged 11 | . . . . . . . . . . . . . . . . 5 . 6 Corruption Blocked . | . . . . . . . . . . . . . . . . . . . Effects 573 | . 4 5 18 5 4 6 . 30 . . 311 49 17 4 48 24 7 41 Message Errors 124 | . 1 2 2 1 2 . . 6 . . 73 11 5 . 11 3 . 7 Matter Fused 143 | . 1 . 5 . . 2 . 4 . . 86 11 2 2 11 6 3 10 Heat Flow Errors 72 | . 1 1 3 1 1 1 . 8 . . 28 6 1 . 5 3 1 12 Energy Discharges 72 | . 1 1 3 2 1 2 . 5 . . 31 7 3 . 4 6 1 5 Parts Rejected 5 | . . . . . . . . . . . 4 . . . . . . 1 Parts Fused 8 | . . . . . . . . . . . 4 1 1 . 1 . . 1 Data Loss (minor) 64 | . . . 3 1 . 1 . 3 . . 33 7 2 1 6 4 1 2 Data Loss (major) 20 | . . . . . . . . . . . 15 3 . . 1 1 . . Misfires 32 | . . 1 2 . . . . . . . 16 2 3 . 5 . 1 2 Alerts 20 | . . . . . . . . 3 . . 11 1 . 1 3 1 . . Weapon Failures 13 | . . . . . . . . 1 . . 10 . . . 1 . . 1 Overload Shots . | . . . . . . . . . . . . . . . . . . . Overflow Damage 1951 | . . . 4 . . . . 76 63 . 627 . . . 95 292 26 768 Projectiles 524 | . . . . . . . . . . . 257 . . . 30 . . 237 Explosions 898 | . . . 4 . . . . 76 . . 276 . . . 65 75 26 376 Melee 529 | . . . . . . . . . 63 . 94 . . . . 217 . 155 Knockbacks 26 | . . . 1 1 . 1 . . . . 10 . . . 4 . . 9 Impact 3 | . . . 1 1 . 1 . . . . . . . . . . . . Kinetic 22 | . . . . . . . . . . . 10 . . . 4 . . 8 Secondary 1 | . . . . . . . . . . . . . . . . . . 1 Self-Inflicted Damage 1047 | . 5 . 8 . . . . 26 . . 397 . . . 148 . 40 423 Shots 26 | . 1 . 1 . . . . 1 . . 11 . . . 3 . 1 8 Rammed 22 | . 1 5 6 1 . 7 2 . . . . . . . . . . . Targets Rammed 31 | 5 1 6 7 1 . 8 2 . . . 1 . . . . . . . Kicked 5 | 5 . . . . . . . . . . . . . . . . . . Crushed 4 | . . 1 1 . . 1 . . . . 1 . . . . . . . Highest Temperature 509 | . 157 225 289 179 90 139 . 243 1 126 335 333 218 . 394 291 203 509 Average Temperature 81 | . 34 74 90 47 50 56 . 56 1 54 81 87 94 . 110 147 92 70 Received Heat Transfer 4088 | . 318 45 279 30 . . 36 414 . . 1109 60 . . 153 12 . 1632 Effects 8 | . . . 2 . . . . . . . 1 . . . . 1 . 4 Energy Bleed 2 | . . . . . . . . . . . . . . . . 1 . 1 Interference 5 | . . . 2 . . . . . . . 1 . . . . . . 2 Matter Decay 1 | . . . . . . . . . . . . . . . . . . 1 Siege Activations 7 | . . . . . . . . . . . . . . . . . . 7 Total Turns 2319 | . . . . . . . . . . . . . . . . . . 2319 Longest Duration 1467 | . . . . . . . . . . . . . . . . . . 1467 Martial Activations . | . . . . . . . . . . . . . . . . . . . Shielding Activations . | . . . . . . . . . . . . . . . . . . . Robots Disrupted 2 | . . . . . . . . . . . . . . . 1 . . 1 Combat Hostiles 2 | . . . . . . . . . . . . . . . 1 . . 1 Robots Corrupted 27 | . . . . . . . . . . . 4 . . . . . . 23 Combat Hostiles 27 | . . . . . . . . . . . 4 . . . . . . 23 Parts Fried 75 | . . . . . . . . 1 . . 15 . . . . . . 59 Impact Corruptions . | . . . . . . . . . . . . . . . . . . . Robots Melted . | . . . . . . . . . . . . . . . . . . . Combat Hostiles . | . . . . . . . . . . . . . . . . . . . Parts Melted . | . . . . . . . . . . . . . . . . . . . Heat Transferred 2551 | . . . . . . . . 50 . . 850 37 . . 629 . . 985 Parts Sabotaged . | . . . . . . . . . . . . . . . . . . . Parts Stolen . | . . . . . . . . . . . . . . . . . . . Parts Stripped . | . . . . . . . . . . . . . . . . . . . Power Chain Reactions 37 | . . . . . . . . 1 . . 15 . . . . . . 21 Alert | -11 -10 -10 -9 -9 -9 -8 -8 -8 -7 -7 -7 -7 -7 -7 -6 -6 -6 -6 ------- Run | Yrd Mat Min Mat Min Exi Min Mat Gar Fac Was Fac Low Low Dat Pro Fac Was Fac Maximum Alert Level 5 | . . . 1 . . . . 2 1 . 5 . . . . 2 . 5 Low Security (%) 37 | 100 100 100 75 100 . 100 100 20 41 100 15 . . . . 53 100 . Level 1 11 | . . . 24 . . . . 23 58 . 10 . . . . 42 . 1 Level 2 8 | . . . . . . . . 55 . . 13 . . . . 4 . 2 Level 3 17 | . . . . . . . . . . . 19 . . . . . . 47 Level 4 9 | . . . . . . . . . . . 13 . . . . . . 20 Level 5 8 | . . . . . . . . . . . 13 . . . . . . 19 High Security 6 | . . . . . . . . . . . 13 . . . . . . 8 Max Security . | . . . . . . . . . . . . . . . . . . . Sterilizations 2 | . . . . . . . . . . . 1 . . . . . . 1 Peak Influence 3285 | 5 111 45 325 171 . 30 120 633 331 66 3285 . . . . 409 140 3206 Initial 331 | . . . . 125 . . . 52 331 66 . . . . . 6 140 14 Average 723 | . 32 4 102 59 . 1 18 359 230 27 1128 . . . . 225 86 1252 Influence Increases 13691 | 10 412 58 891 215 . 40 149 681 98 27 4958 20 . . 319 1032 41 4740 Destroy 0b10 Robot/C 7260 | . 180 40 540 160 . 20 100 400 . . 2780 20 . . 260 240 . 2520 Destroy 0b10 Robot/NC 675 | 10 10 5 60 . . 10 . . 15 . 290 . . . 10 55 . 210 Destroy Leader 1424 | . 42 10 182 20 . 10 20 20 2 . 534 . . . 40 66 . 478 Allied During Kill 872 | . . 3 12 . . . . . . . 364 . . . 9 7 . 477 Successful Hack 455 | . 71 . 15 . . . 13 12 50 . 150 . . . . 44 . 100 Disable Machine 495 | . . . 15 30 . . . 15 . . 165 . . . . 90 . 180 Anti-Garrison Action 150 | . . . . . . . . 150 . . . . . . . . . . Destroy Structure 1250 | . 19 . 37 5 . . 1 84 1 27 495 . . . . 140 41 400 Partial Spotted 180 | . 15 . . . . . . . 15 . 15 . . . . 75 . 60 Lose Combat Pursuer 930 | . 75 . 30 . . . 15 . 15 . 165 . . . . 315 . 315 Influence Decreases 10557 | 10 412 58 568 455 83 40 69 128 540 218 1673 1668 482 1155 309 641 421 1627 Entered New Map 3691 | . . . . 198 83 . . 28 302 125 . 1216 312 1155 . 4 261 7 Time Decay 4806 | 10 372 58 558 257 . 40 69 . 238 93 753 452 170 . 289 527 150 770 Lost Part 590 | . 40 . 10 . . . . 100 . . 90 . . . 20 70 10 250 Lost Ally 570 | . . . . . . . . . . . 230 . . . . 40 . 300 Purge Threat 900 | . . . . . . . . . . . 600 . . . . . . 300 Squads Dispatched 130 | . 1 . 2 . . . . . 3 . 57 . . . . 10 . 57 Investigation 22 | . 1 . . . . . . . . . 6 . . . . 3 . 12 Extermination 34 | . . . . . . . . . 2 . 16 . . . . 5 . 11 Reinforcement 28 | . . . 2 . . . . . 1 . 13 . . . . 2 . 10 Assault 46 | . . . . . . . . . . . 22 . . . . . . 24 Garrison . | . . . . . . . . . . . . . . . . . . . Intercept . | . . . . . . . . . . . . . . . . . . . Searches Triggered . | . . . . . . . . . . . . . . . . . . . Data Miner Redirects 8 | . . . . . . . . . . . . . . . . 1 . 7 Construction Impeded 18 | . . . . . . . . . . . 8 . . . . . . 10 Haulers Reinforced 4 | . . . . . . . . . . . 4 . . . . . . . Active Scanning Responses . | . . . . . . . . . . . . . . . . . . . Cargo Convoy Interrupts . | . . . . . . . . . . . . . . . . . . . Stealth | -11 -10 -10 -9 -9 -9 -8 -8 -8 -7 -7 -7 -7 -7 -7 -6 -6 -6 -6 --------- Run | Yrd Mat Min Mat Min Exi Min Mat Gar Fac Was Fac Low Low Dat Pro Fac Was Fac Distress Signals 40 | . 3 . 1 . . . . . 1 . 5 . . . 21 5 . 4 Communications Jammed . | . . . . . . . . . . . . . . . . . . . Distress Signals . | . . . . . . . . . . . . . . . . . . . Times Spotted 497 | . 25 2 46 7 . . 8 20 4 6 172 1 . . 17 46 6 137 Peak Tracking Total 11 | . 5 2 5 4 . . 3 4 3 6 10 1 . . 4 7 5 11 Tactical Retreats 41 | . 5 . 2 . . . 1 . 1 . 5 . . . . 13 1 13 Traps | -11 -10 -10 -9 -9 -9 -8 -8 -8 -7 -7 -7 -7 -7 -7 -6 -6 -6 -6 ------- Run | Yrd Mat Min Mat Min Exi Min Mat Gar Fac Was Fac Low Low Dat Pro Fac Was Fac Traps Triggered 31 | . 4 . 2 . . . . 5 3 . 6 1 . . 1 3 . 6 Indirectly . | . . . . . . . . . . . . . . . . . . . Trap Hack Attempts . | . . . . . . . . . . . . . . . . . . . Triggered . | . . . . . . . . . . . . . . . . . . . Disarmed . | . . . . . . . . . . . . . . . . . . . Reprogrammed . | . . . . . . . . . . . . . . . . . . . Reused . | . . . . . . . . . . . . . . . . . . . Traps Extracted . | . . . . . . . . . . . . . . . . . . . Installed 1 | . . 1 . . . . . . . . . . . . . . . . Triggered . | . . . . . . . . . . . . . . . . . . . Machines | -11 -10 -10 -9 -9 -9 -8 -8 -8 -7 -7 -7 -7 -7 -7 -6 -6 -6 -6 ---------- Run | Yrd Mat Min Mat Min Exi Min Mat Gar Fac Was Fac Low Low Dat Pro Fac Was Fac Machines Disabled 37 | . . . 1 2 . . . 2 . . 11 . . . 2 6 . 13 Max in Single Turn 5 | . . . 1 1 . . . 1 . . 2 . . . 1 1 . 5 Garrison Access 7 | . . . . . . . . . . . 2 . . . . 2 . 3 Garrison Relay 1 | . . . . . . . . 1 . . . . . . . . . . Machines Repaired . | . . . . . . . . . . . . . . . . . . . Machines Dismantled . | . . . . . . . . . . . . . . . . . . . Machines Sabotaged . | . . . . . . . . . . . . . . . . . . . Overloaded Fab Kills . | . . . . . . . . . . . . . . . . . . . Hacking | -11 -10 -10 -9 -9 -9 -8 -8 -8 -7 -7 -7 -7 -7 -7 -6 -6 -6 -6 --------- Run | Yrd Mat Min Mat Min Exi Min Mat Gar Fac Was Fac Low Low Dat Pro Fac Was Fac Machines Accessed 117 | . 11 1 12 . 2 . 3 2 7 . 28 2 . 4 . 16 . 29 Terminals 62 | . 8 . 10 . . . 2 2 3 . 14 . . . . 7 . 16 Fabricators 10 | . . . . . . . . . . . 3 . . . . 2 . 5 Repair Stations 9 | . 1 . 1 . . . . . 1 . 3 . . . . 3 . . Recycling Units 15 | . 2 . 1 . . . . . 2 . 3 . . . . 2 . 5 Scanalyzers 2 | . . . . . . . . . . . 2 . . . . . . . Garrison Access 10 | . . . . . . . 1 . 1 . 3 . . . . 2 . 3 Total Hacks 371 | . 36 1 30 . 2 . 10 4 21 . 104 2 . 26 . 45 . 90 Successful 216 | . 17 1 14 . 2 . 6 1 12 . 56 2 . 26 . 25 . 54 Failed 155 | . 19 . 16 . . . 4 3 9 . 48 . . . . 20 . 36 Catastrophic 21 | . 4 . . . . . . 1 . . 7 . . . . 4 . 5 Database Lockouts . | . . . . . . . . . . . . . . . . . . . Manual 139 | . 20 . 11 . 1 . 5 . 5 . 35 . . . . 18 . 44 Terminals 227 | . 29 . 26 . . . 8 4 9 . 63 . . . . 26 . 62 Fabricators 27 | . . . . . . . . . . . 11 . . . . 2 . 14 Repair Stations 17 | . 2 . 2 . . . . . 2 . 7 . . . . 4 . . Recycling Units 39 | . 5 . 2 . . . . . 8 . 7 . . . . 8 . 9 Scanalyzers 6 | . . . . . . . . . . . 6 . . . . . . . Garrison Access 24 | . . . . . . . 2 . 2 . 10 . . . . 5 . 5 Terminal Hacks 120 | . 7 1 7 . 2 . 3 1 4 . 28 2 . 26 . 12 . 27 Record 12 | . . . . . 1 . . . . . . . . 11 . . . . Part Schematic 23 | . 1 . . . . . 1 . . . 7 . . 8 . 2 . 4 Robot Schematic 4 | . . . . . . . . . . . . . . 4 . . . . Robot Analysis 3 | . 2 . . . . . . . . . . . . . . . . 1 Prototype ID Bank 10 | . 1 . 2 . . . 1 . 1 . 1 . . 3 . . . 1 Open Door 3 | . . 1 . . . . . . . . . 2 . . . . . . Branch Access Points 3 | . . . . . . . . . . . 1 . . . . 1 . 1 Emergency Access Points 1 | . . . . . . . . . . . 1 . . . . . . . Machine Index 2 | . . . . . . . . . . . 1 . . . . 1 . . Terminal Index 4 | . . . 1 . . . . . 1 . 1 . . . . . . 1 Fabricator Index 1 | . . . . . . . . . . . . . . . . . . 1 Recycling Unit Index 1 | . . . . . . . . . . . 1 . . . . . . . Unreport Threat 6 | . . . . . . . . . . . 4 . . . . . . 2 Locate Traps 4 | . 1 . 1 . . . . . . . . . . . . 2 . . Investigation Status 2 | . . . . . . . . . . . 1 . . . . . . 1 Intercept Status 1 | . . . . . . . . . . . . . . . . . . 1 Recall Investigation 7 | . . . . . . . . . . . 3 . . . . . . 4 Recall Extermination 9 | . . . . . . . . . . . 3 . . . . 1 . 5 Hauler Manifests 7 | . 1 . 1 . . . 1 . 1 . 1 . . . . 1 . 1 Registered Components 4 | . 1 . . . . . . . 1 . 1 . . . . 1 . . Registered Prototypes 3 | . . . . . . . . . . . 1 . . . . 1 . 1 Zone Layout 8 | . . . 2 . . . . . . . 1 . . . . 2 . 3 Garrison Registry 1 | . . . . . . . . 1 . . . . . . . . . . Proto ID Catalog 1 | . . . . . 1 . . . . . . . . . . . . . Fabricator Hacks 20 | . . . . . . . . . . . 8 . . . . 2 . 10 Network Status 2 | . . . . . . . . . . . 1 . . . . 1 . . Load Schematic 9 | . . . . . . . . . . . 3 . . . . . . 6 Build 9 | . . . . . . . . . . . 4 . . . . 1 . 4 Repair Station Hacks 14 | . 2 . 2 . . . . . 2 . 6 . . . . 2 . . Scan Component 7 | . 1 . 1 . . . . . 1 . 3 . . . . 1 . . Repair 7 | . 1 . 1 . . . . . 1 . 3 . . . . 1 . . Recycling Unit Hacks 12 | . 2 . . . . . . . 2 . 2 . . . . 2 . 4 Retrieve Components 12 | . 2 . . . . . . . 2 . 2 . . . . 2 . 4 Scanalyzer 4 | . . . . . . . . . . . 4 . . . . . . . Insert Component 2 | . . . . . . . . . . . 2 . . . . . . . Analyze 2 | . . . . . . . . . . . 2 . . . . . . . Garrison Access Hacks 8 | . . . . . . . 1 . . . 2 . . . . 2 . 3 Unlock Access 1 | . . . . . . . 1 . . . . . . . . . . . Seal Access 7 | . . . . . . . . . . . 2 . . . . 2 . 3 Unauthorized Hacks 38 | . 6 . 5 . . . 2 . 4 . 6 . . . . 5 . 10 Terminals 21 | . 5 . 5 . . . 2 . . . 3 . . . . . . 6 Assimilate 3 | . . . . . . . . . . . 1 . . . . . . 2 Botnet 5 | . . . . . . . . . . . 2 . . . . . . 3 Operators 1 | . . . . . . . . . . . . . . . . . . 1 Skim 12 | . 5 . 5 . . . 2 . . . . . . . . . . . Fabricators 2 | . . . . . . . . . . . . . . . . . . 2 Prioritize 1 | . . . . . . . . . . . . . . . . . . 1 Recompile 1 | . . . . . . . . . . . . . . . . . . 1 Repair Stations 2 | . . . . . . . . . . . . . . . . 2 . . Patch 2 | . . . . . . . . . . . . . . . . 2 . . Recycling Units 13 | . 1 . . . . . . . 4 . 3 . . . . 3 . 2 Reject 2 | . . . . . . . . . 1 . . . . . . 1 . . Recyclers 2 | . . . . . . . . . 1 . . . . . . 1 . . Mask 9 | . 1 . . . . . . . 2 . 3 . . . . 1 . 2 Scanalyzers . | . . . . . . . . . . . . . . . . . . . Garrison Access . | . . . . . . . . . . . . . . . . . . . Data Cores Recovered 1 | . . . . . . . . . . . . . . . . . . 1 Used . | . . . . . . . . . . . . . . . . . . . Hacking Detections 86 | . 10 . 11 . . . 3 2 6 . 24 . . . . 10 . 20 Full Trace Events 16 | . . . 1 . . . . . . . 5 . . . . 1 . 9 Feedback Events 2 | . . . . . . . . . . . . . . . . 1 . 1 Hackware Fried 2 | . . . . . . . . . . . . . . . . 1 . 1 Feedback Blocked . | . . . . . . . . . . . . . . . . . . . Robot Schematics Acquired 4 | . . . . . . . . . . . . . . 4 . . . . Robots Built . | . . . . . . . . . . . . . . . . . . . Authchips . | . . . . . . . . . . . . . . . . . . . Time . | . . . . . . . . . . . . . . . . . . . Total Robot Build Rating . | . . . . . . . . . . . . . . . . . . . Part Schematics Acquired 24 | . 1 . . . . . 1 . . . 8 . . 8 . 2 . 4 Parts Built 13 | . . . . . . . . . . . 7 . . . . 2 . 4 Authchips 1 | . . . . . . . . . . . . . . . . . . 1 Time 391 | . . . . . . . . . . . 173 . . . . 58 . 160 Total Part Build Rating 70 | . . . . . . . . . . . 35 . . . . 14 . 21 Parts Repaired 7 | . 1 . 1 . . . . . 1 . 3 . . . . 1 . . Time 240 | . 26 . 32 . . . . . 22 . 116 . . . . 44 . . Parts Recycled . | . . . . . . . . . . . . . . . . . . . Recycled Matter . | . . . . . . . . . . . . . . . . . . . Retrieved Matter . | . . . . . . . . . . . . . . . . . . . Retrieved Components 30 | . 4 . . . . . . . 12 . 9 . . . . . . 5 Parts Scanalyzed 2 | . . . . . . . . . . . 2 . . . . . . . Part Schematics Acquired 1 | . . . . . . . . . . . 1 . . . . . . . Parts Damaged . | . . . . . . . . . . . . . . . . . . . Bothacking | -11 -10 -10 -9 -9 -9 -8 -8 -8 -7 -7 -7 -7 -7 -7 -6 -6 -6 -6 ------------ Run | Yrd Mat Min Mat Min Exi Min Mat Gar Fac Was Fac Low Low Dat Pro Fac Was Fac Used RIF Installer . | . . . . . . . . . . . . . . . . . . . Robots Hacked 1 | . . . . . . . . . . . . . . . . 1 . . Non-combat 1 | . . . . . . . . . . . . . . . . 1 . . Combat . | . . . . . . . . . . . . . . . . . . . Robot Hacks Applied 1 | . . . . . . . . . . . . . . . . 1 . . find_chute 1 | . . . . . . . . . . . . . . . . 1 . . Relay Couplers Released 7 | . . . . . . . . 7 . . . . . . . . . . Machine Destruction 4 | . . . . . . . . 4 . . . . . . . . . . Programmers 3 | . . . . . . . . 3 . . . . . . . . . . Fabnet Peak Effective % . | . . . . . . . . . . . . . . . . . . . Robots Rewired 2 | . . . . . . . . . . . . . . . 2 . . . Allies Hacked 1 | . . . . . . . . . . . . . . . . . . 1 Hacks Repelled . | . . . . . . . . . . . . . . . . . . . Allies | -11 -10 -10 -9 -9 -9 -8 -8 -8 -7 -7 -7 -7 -7 -7 -6 -6 -6 -6 -------- Run | Yrd Mat Min Mat Min Exi Min Mat Gar Fac Was Fac Low Low Dat Pro Fac Was Fac Total Allies 59 | . . 2 . 1 . . . . . 19 1 . . . 3 . 19 14 Largest Group 19 | . . 2 1 1 . . . . . 19 14 . . . 3 2 19 16 Highest-Rated Group 702 | . . 45 31 31 . . . . . 475 405 . . . 164 68 702 627 Highest-Rated Ally 96 | . . 31 31 31 . . . . . 35 35 . . . 96 34 50 50 Initial Warlord ECA Mod 16 | . . . . . . . . . 2 2 2 2 2 2 1 1 1 1 Total Orders . | . . . . . . . . . . . . . . . . . . . Ally Attacks 557 | . . 5 6 3 . . . . . 84 142 . . . 19 12 125 161 Total Damage 17849 | . . 106 103 22 . . . . . 4287 3356 . . . 713 1159 3871 4232 Kills 98 | . . 2 1 1 . . . . . 11 32 . . . 2 7 6 36 Allies Corrupted 4 | . . . . . . . . . . . . . . . . . . 4 Allies Melted . | . . . . . . . . . . . . . . . . . . . Intel | -11 -10 -10 -9 -9 -9 -8 -8 -8 -7 -7 -7 -7 -7 -7 -6 -6 -6 -6 ------- Run | Yrd Mat Min Mat Min Exi Min Mat Gar Fac Was Fac Low Low Dat Pro Fac Was Fac Active Infowar (turns) 5609 | 162 657 . 650 . . . . . 16 281 819 1082 346 116 730 750 . . Terrain 2 | . . . . . . . . . . . . . . . 2 . . . Seismic 3496 | 162 657 . 650 . . . . . . . . 1082 346 116 483 . . . T.N.C. 1866 | . . . . . . . . . 16 281 819 . . . . 750 . . Jamming 245 | . . . . . . . . . . . . . . . 245 . . . Robot Analysis Total 3 | . 2 . . . . . . . . . . . . . . . . 1 Derelict Logs Recovered 7 | . . 2 . 1 . . . . . . . . 2 . 2 . . . Drone Launches . | . . . . . . . . . . . . . . . . . . . Drone Recoveries . | . . . . . . . . . . . . . . . . . . . Exploration | -11 -10 -10 -9 -9 -9 -8 -8 -8 -7 -7 -7 -7 -7 -7 -6 -6 -6 -6 ------------- Run | Yrd Mat Min Mat Min Exi Min Mat Gar Fac Was Fac Low Low Dat Pro Fac Was Fac Turns Passed 30019 | 186 1192 699 2729 944 764 767 693 1473 513 281 9481 1121 346 116 1081 1655 310 5668 Spaces Moved 27455 | 134 649 418 1131 530 474 469 271 642 1240 428 8605 737 248 88 618 3760 530 6483 Core 13 | . . . . . . . . . . . . . . . . 13 . . Treads 5554 | . 461 418 1131 530 474 469 271 642 6 . 791 . . . . 43 . 318 Legs 322 | 134 188 . . . . . . . . . . . . . . . . . Wheels 2403 | . . . . . . . . . . . 681 737 248 88 618 22 . 9 Hover . | . . . . . . . . . . . . . . . . . . . Flight 19163 | . . . . . . . . . 1234 428 7133 . . . . 3682 530 6156 Fastest Speed 20 | 120 120 160 160 160 160 160 235 155 31 29 20 130 130 130 130 26 26 26 Average Speed 72 | 120 148 160 210 160 160 160 236 190 35 50 55 130 130 130 137 31 44 37 Slowest Speed 560 | 120 240 160 240 160 160 160 240 240 160 102 560 160 130 130 145 160 94 243 Overloaded Moves 8 | . . . . . . . . . . . 8 . . . . . . . Propulsion Burnouts . | . . . . . . . . . . . . . . . . . . . Robots Hopped 127 | . . . . . . . . . 9 . 55 . . . . 31 . 32 Potential Cave-ins . | . . . . . . . . . . . . . . . . . . . Cave-ins Triggered . | . . . . . . . . . . . . . . . . . . . Exploration Rate (%) 71 | 7 97 92 93 99 79 93 28 75 28 95 90 79 43 68 62 52 96 83 Regions Visited 18 Branch Regions 8 Pre-discovered Areas 7 | . . . 3 . 1 . . . . . . 1 1 1 . . . . Known Exits Taken 5 | . 1 1 . . . 1 1 . . . 1 . . . . . . . Unknown Exits Taken 8 | 1 . . 1 1 1 . . . . . . 1 1 1 1 . . . Scrap Searched 12 | . . 1 . 2 . 1 . . . . . 4 1 . 3 . . . Spaces Dug 389 | . . . . . . . . 9 1 2 160 15 10 . 14 71 1 106 Terrain Destroyed 1504 | . 22 . 29 5 . . . 120 1 2 640 19 12 . 127 100 22 405 Melee 278 | . . . . . . . . . 1 2 104 15 8 . . 66 1 81 Projectile 168 | . . . . . . . . . . . 132 4 4 . 8 . . 20 AOE 1058 | . 22 . 29 5 . . . 120 . . 404 . . . 119 34 21 304 Terrain Rammed . | . . . . . . . . . . . . . . . . . . . Walls Destroyed . | . . . . . . . . . . . . . . . . . . . Machines Disabled . | . . . . . . . . . . . . . . . . . . . Actions | -11 -10 -10 -9 -9 -9 -8 -8 -8 -7 -7 -7 -7 -7 -7 -6 -6 -6 -6 --------- Run | Yrd Mat Min Mat Min Exi Min Mat Gar Fac Was Fac Low Low Dat Pro Fac Was Fac Total 35550 | 145 782 438 1346 613 481 478 292 757 1289 485 12503 867 256 89 768 4037 604 9320 Wait 5664 | . 37 . 42 67 . . . 6 . 44 3102 92 . . 26 94 58 2096 Move 27187 | 133 648 417 1130 529 473 468 271 638 1222 427 8496 736 247 87 617 3700 529 6419 Hop 123 | . . . . . . . . . 9 . 53 . . . . 29 . 32 Pick Up 266 | . 20 2 21 3 2 . 1 2 4 1 83 4 . . 4 8 1 110 Fast Attach 145 | 1 5 3 8 . 2 . . 2 12 3 28 2 . 1 10 26 8 34 Attach 89 | . 6 . 2 . . . 2 6 2 . 28 . . . 4 10 . 29 Detach 29 | . . . 1 . . . . . 1 . 10 1 . . . 2 . 14 Swap 210 | . 3 . 24 3 . 1 3 10 1 . 74 6 . . 18 1 . 66 Drop 347 | . 10 5 36 3 4 . . 1 22 5 70 6 . 1 12 44 7 121 Fire 956 | 6 52 4 75 7 . 1 13 82 . 3 397 4 1 . 46 10 . 255 Melee 382 | . . . . . . . . . 10 2 143 15 8 . . 95 1 108 Ram . | . . . . . . . . . . . . . . . . . . . Kick 5 | 5 . . . . . . . . . . . . . . . . . . Crush 26 | . 1 6 7 1 . 8 2 . . . 1 . . . . . . . Escape Stasis 96 | . . . . . . . . 10 6 . 18 . . . 8 18 . 36 Rewire 24 | . . . . . . . . . . . . 1 . . 23 . . . Trap 1 | . . 1 . . . . . . . . . . . . . . . . Miscellaneous . | . . . . . . . . . . . . . . . . . . . Route ------- -11/Scrapyard -10/Materials (discovered 6 exits: *Mat x3 / *Min x2 / *Sub) -10/Mines (discovered 3 exits: *Mat x2 / Sub) -9/Materials (discovered 4 exits: *Mat x3 / [*Min]) -9/Mines (discovered 3 exits: *Mat x2 / *Exi) -9/Exiles (discovered 2 exits: [*Min x2]) -8/Mines (discovered 2 exits: *Mat x2) -8/Materials (discovered 2 exits: [*Sto] / Gar) -8/Garrison (discovered 3 exits: *Fac x3) -7/Factory -7/Waste -7/Factory (discovered 4 exits: *Fac x2 / *Low x2) -7/Lower Caves -7/Lower Caves (discovered 2 exits: *Fac / *Dat) -7/Data Miner -6/Proximity Caves -6/Factory (discovered 3 exits: [*Fac] / Low x2) -6/Waste -6/Factory (discovered 6 exits: [*Fac x4] / *Low x2) History --------- Turn | Location | Event 11 | -11/Scrapyard | Discovered new exit (range 3) 187 | -11/Scrapyard | Entered Materials 273 | -10/Materials | Discovered new exit (range 15) 313 | -10/Materials | Build established: Mutant 415 | -10/Materials | Discovered new exit (range 13) 558 | -10/Materials | Discovered new exit (range 7) 687 | -10/Materials | Derelicts attacked the area 870 | -10/Materials | Core integrity fell below 50% 892 | -10/Materials | Lost 3 parts (1u2w) 947 | -10/Materials | Discovered new exit (range 3) 1047 | -10/Materials | Learned Storage trap positions 1066 | -10/Materials | Learned location of 2 exits from Subcaves 1075 | -10/Materials | Learned 2 Storage zone layouts 1076 | -10/Materials | Identified exit to Mines 1076 | -10/Materials | Identified exit to Materials 1087 | -10/Materials | Learned 2 Storage zone layouts 1247 | -10/Materials | Repaired Lgt. Treads 1379 | -10/Materials | Entered Mines 1380 | -10/Mines | Identified exit to Subcaves 1431 | -10/Mines | Discovered exit to Materials (range 13) 1480 | -10/Mines | Discovered exit to Materials (range 3) 1543 | -10/Mines | Found a hidden stash of uninstalled traps 1804 | -10/Mines | Found the Drone Emporium 1812 | -10/Mines | Found Prototype Device 1812 | -10/Mines | Identified Splice Drone Bay 1859 | -10/Mines | Learned Materials stockpile data 2022 | -10/Mines | Found a Scrap Suit stashed away for nefarious purposes 2078 | -10/Mines | Entered Materials 2078 | -9/Materials | Accompanied by 1 ally 2078 | -9/Materials | Evolved 2 slots: Propulsion x1, Utility x1 2083 | -9/Materials | Led the pair of lost Derelicts to an unsafe place 2372 | -9/Materials | Discovered new exit (range 16) 3266 | -9/Materials | Discovered new exit (range 16) 3874 | -9/Materials | Discovered new exit (range 7) 3967 | -9/Materials | Learned Materials stockpile data 4032 | -9/Materials | Loaded intel: 13 trap records 4132 | -9/Materials | Learned location of Recycling (-8) 4169 | -9/Materials | Identified exit to Materials 4197 | -9/Materials | Learned Storage machine intel 4237 | -9/Materials | Learned location of 1 exit from Storage 4286 | -9/Materials | Learned location of Mines (-9) 4326 | -9/Materials | Build established: Scavenger-Mutant 4346 | -9/Materials | Learned location of 1 exit from Storage 4493 | -9/Materials | Repaired Med. Armor Plating 4681 | -9/Materials | Build established: Mutant 4807 | -9/Materials | Entered Mines 4825 | -9/Mines | Learned Materials terminal intel 4831 | -9/Mines | Received a Mining Laser from a helpful Derelict 4845 | -9/Mines | Assembled infested the area 5170 | -9/Mines | Discovered exit to Materials (range 10) 5434 | -9/Mines | Discovered exit to Materials (range 12) 5576 | -9/Mines | Found DCF Scrap (15 items) 5745 | -9/Mines | Discovered new exit (range 5) 5751 | -9/Mines | Entered Exiles 5788 | -9/Exiles | Met 8R-AWN 5817 | -9/Exiles | Met EX-HEX 5882 | -9/Exiles | Met EX-BIN 5903 | -9/Exiles | Aligned with FarCom system 5904 | -9/Exiles | Given EX-Vault access code 5943 | -9/Exiles | Opened EX-Vault 5955 | -9/Exiles | Found Supersonic Drone Bay 5986 | -9/Exiles | Warned to stay clear of 0b10 Research branches 6029 | -9/Exiles | Met EX-DEC 6040 | -9/Exiles | Learned location of Zion (-6) 6113 | -9/Exiles | Visited The Gauntlet 6290 | -9/Exiles | Discovered new exit (range 10) 6494 | -9/Exiles | Discovered new exit (range 15) 6515 | -9/Exiles | Left Exiles lab with Supersonic Drone Bay 6515 | -9/Exiles | Entered Mines 6714 | -8/Mines | Discovered exit to Materials (range 6) 7179 | -8/Mines | Discovered exit to Materials (range 11) 7282 | -8/Mines | Entered Materials 7282 | -8/Materials | Evolved 2 slots: Utility x2 7284 | -8/Materials | Loaded intel: 12 terminal locations 7691 | -8/Materials | Discovered new exit (range 16) 7975 | -8/Materials | Identified exit to Garrison 7975 | -8/Materials | Entered Garrison 8121 | -8/Garrison | Triggered checkpoint 8276 | -8/Garrison | Lost 3 parts (1p2u) 8393 | -8/Garrison | Discovered new exit (range 15) 8559 | -8/Garrison | Triggered checkpoint 8644 | -8/Garrison | Discovered new exit (range 8) 8791 | -8/Garrison | Triggered checkpoint 8832 | -8/Garrison | Lost 3 parts (2u1w) 8876 | -8/Garrison | Discovered new exit (range 15) 8941 | -8/Garrison | Triggered checkpoint 8966 | -8/Garrison | Garrison Relay disabled 9010 | -8/Garrison | Attempted to access garrison exit controls, blocked by remote lockdown 9169 | -8/Garrison | Triggered checkpoint 9261 | -8/Garrison | Discovered new exit (range 76) 9261 | -8/Garrison | Discovered new exit (range 84) 9261 | -8/Garrison | Discovered new exit (range 21) 9309 | -8/Garrison | Attempted to access garrison exit controls, blocked by remote lockdown 9448 | -8/Garrison | Entered Factory 9448 | -7/Factory | Evolved 2 slots: Propulsion x1, Utility x1 9847 | -7/Factory | Repaired Imp. Medium Armor Plating? 9961 | -7/Factory | Sucked down chute 9961 | -7/Factory | Entered Waste 9966 | -7/Waste | Spotted C-40 Crusher 9968 | -7/Waste | Spotted C-40 Crusher 9968 | -7/Waste | Spotted C-40 Crusher 9977 | -7/Waste | Spotted C-40 Crusher 9981 | -7/Waste | Spotted C-40 Crusher 9983 | -7/Waste | Spotted C-40 Crusher 9987 | -7/Waste | Discovered new exit (range 14) 10015 | -7/Waste | Warlord forces began an assault 10026 | -7/Waste | Allies destroyed C-40 Crusher 10026 | -7/Waste | Allies destroyed C-40 Crusher 10028 | -7/Waste | Allies destroyed C-40 Crusher 10032 | -7/Waste | Allies destroyed C-40 Crusher 10037 | -7/Waste | Allies destroyed C-40 Crusher 10038 | -7/Waste | Allies destroyed C-40 Crusher 10069 | -7/Waste | Lost 3 allies 10242 | -7/Waste | Entered Factory 10242 | -7/Factory | Accompanied by 14 allies 10423 | -7/Factory | Lost 3 allies 10524 | -7/Factory | Identified exit to Lower Caves 10617 | -7/Factory | Build established: Hacker-Sprinter 10929 | -7/Factory | Repaired Lyr. Heavy Armor Plating? 10953 | -7/Factory | Discovered new exit (range 8) 10969 | -7/Factory | Fabricated Adv. Shield Generator? 11037 | -7/Factory | Fabricated Powered Armor? 11546 | -7/Factory | Build established: Wizard-Sprinter 11659 | -7/Factory | Repaired Med. Reactive Plating? 11681 | -7/Factory | Repaired Neutron Cannon? 11788 | -7/Factory | Allied Derelicts emerged from ambush trap array 12112 | -7/Factory | Fabricated Hvy. Reactive Plating (x1) 12112 | -7/Factory | Fabricated Imp. Medium Treads? 12539 | -7/Factory | Discovered new exit (range 8) 12667 | -7/Factory | Found Powered Armor 13649 | -7/Factory | Build established: Machinist-Mutant 14242 | -7/Factory | First assault squad dispatched 14429 | -7/Factory | Build established: Mutant 16795 | -7/Factory | Destroyed 9 combat bots 17070 | -7/Factory | System corruption reached 10% 17201 | -7/Factory | Destroyed 10 combat bots 18447 | -7/Factory | High security lockdown imminent 18527 | -7/Factory | High security lockdown engaged 18601 | -7/Factory | Destroyed 11 combat bots 18650 | -7/Factory | Lost 5 parts (2n3u) 18847 | -7/Factory | Destroyed 8 combat bots 18935 | -7/Factory | Sterilization system engaged 18935 | -7/Factory | Non-combat units ordered to evacuate 18948 | -7/Factory | Destroyed 9 combat bots 19035 | -7/Factory | Combat units ordered to evacuate 19044 | -7/Factory | Destroyed 15 combat bots 19235 | -7/Factory | Ambient heat levels rising (+10) 19385 | -7/Factory | Ambient heat levels rising (+10) 19535 | -7/Factory | Ambient heat levels rising (+10) 19685 | -7/Factory | Ambient heat levels rising (+10) 19723 | -7/Factory | Entered Lower Caves 19729 | -7/Lower Caves | Met a Warlord Commander 19730 | -7/Lower Caves | Learned location of Warlord (-4) 19731 | -7/Lower Caves | Warlord Commander delivered Encrypted Comm Array 19735 | -7/Lower Caves | Found Encrypted Comm Array 20465 | -7/Lower Caves | Attracted the attention of an 0b10 checkpoint 20831 | -7/Lower Caves | Discovered new exit (range 10) 20844 | -7/Lower Caves | Entered another Lower Caves area 20860 | -7/Lower Caves | Discovered new exit (range 7) 21178 | -7/Lower Caves | Discovered new exit (range 9) 21190 | -7/Lower Caves | Entered Data Miner 21191 | -7/Data Miner | Discovered new exit (range 6) 21216 | -7/Data Miner | Met Data Miner 21239 | -7/Data Miner | Learned location of Section 7 (-2) 21239 | -7/Data Miner | Acquired the access code to Warlord's prototype stash 21259 | -7/Data Miner | Received God Mode back door access code from Data Miner 21306 | -7/Data Miner | Entered Proximity Caves 21308 | -6/Proximity Caves | Core integrity fell below 50% 21453 | -6/Proximity Caves | Learned 4 Factory zone layouts 21514 | -6/Proximity Caves | Learned location of 1 exit from Factory 21627 | -6/Proximity Caves | Spotted B-75 Beast 21688 | -6/Proximity Caves | Destroyed B-75 Beast 21772 | -6/Proximity Caves | Attracted the attention of an 0b10 checkpoint 22119 | -6/Proximity Caves | Escorted by Enhanced Grunt 22223 | -6/Proximity Caves | Found Prototype Launcher 22223 | -6/Proximity Caves | Identified Scatter Rocket Array 22355 | -6/Proximity Caves | Discovered new exit (range 15) 22387 | -6/Proximity Caves | Entered Factory 22387 | -6/Factory | Accompanied by 2 allies 22387 | -6/Factory | Evolved 2 slots: Power x1, Utility x1 22388 | -6/Factory | Identified exit to Lower Caves 22801 | -6/Factory | Build established: Hacker-Sprinter 23025 | -6/Factory | Discovered new exit (range 4) 23175 | -6/Factory | Fabricated HERF Cannon? 23248 | -6/Factory | Incoming investigation squad redirected 23323 | -6/Factory | Repaired Powered Armor? 23645 | -6/Factory | Lost 3 parts (1p2n) 23847 | -6/Factory | Hacking Suite fried by hacking feedback 23860 | -6/Factory | Found Launcher Loader 24042 | -6/Factory | Manually triggered Chute Trap 24042 | -6/Factory | Sucked down chute 24042 | -6/Factory | Entered Waste 24045 | -6/Waste | Spotted C-40 Crusher 24069 | -6/Waste | Spotted C-40 Crusher 24069 | -6/Waste | Spotted C-40 Crusher 24108 | -6/Waste | Spotted C-40 Crusher 24108 | -6/Waste | Spotted C-40 Crusher 24122 | -6/Waste | Warlord forces began an assault 24143 | -6/Waste | Allies destroyed C-40 Crusher 24150 | -6/Waste | Allies destroyed C-40 Crusher 24153 | -6/Waste | Allies destroyed C-40 Crusher 24153 | -6/Waste | Allies destroyed C-40 Crusher 24164 | -6/Waste | Allies destroyed C-40 Crusher 24167 | -6/Waste | Spotted C-40 Crusher 24173 | -6/Waste | Allies destroyed C-40 Crusher 24232 | -6/Waste | Murdered 3 allies 24308 | -6/Waste | Discovered new exit (range 13) 24352 | -6/Waste | Entered Factory 24352 | -6/Factory | Accompanied by 16 allies 24438 | -6/Factory | Hacking Suite fried by hacking feedback 24460 | -6/Factory | Incoming investigation squad redirected 24559 | -6/Factory | Lost 3 allies 24692 | -6/Factory | Lost 4 allies 24737 | -6/Factory | Incoming investigation squad redirected 24762 | -6/Factory | Fabricated Hvy. Treads? 24840 | -6/Factory | Discovered new exit (range 12) 24898 | -6/Factory | Fabricated Hvy. Reactive Plating (x1) 24930 | -6/Factory | Lost 3 allies 25026 | -6/Factory | Incoming investigation squad redirected 25052 | -6/Factory | Spotted B-75 Beast 25083 | -6/Factory | Incoming investigation squad redirected 25252 | -6/Factory | Discovered new exit (range 4) 25375 | -6/Factory | Fabricated Lrn. Missile Launcher? 25701 | -6/Factory | Build established: Wizard-Sprinter 25779 | -6/Factory | Discovered new exit (range 7) 25885 | -6/Factory | Fabricated Imp. Proton Missile Launcher? 25894 | -6/Factory | Discovered new exit (range 15) 26452 | -6/Factory | First assault squad dispatched 26467 | -6/Factory | Incoming assault squad redirected 27503 | -6/Factory | Build established: Mutant 29099 | -6/Factory | Destroyed 11 combat bots 29268 | -6/Factory | Incoming assault squad redirected 29274 | -6/Factory | Incoming assault squad redirected 29542 | -6/Factory | High security lockdown imminent 29622 | -6/Factory | High security lockdown engaged 29754 | -6/Factory | Destroyed 8 combat bots 29881 | -6/Factory | Lost 7 parts (1p2n2u2w) 29895 | -6/Factory | Destroyed 13 combat bots 29952 | -6/Factory | Destroyed 8 combat bots 29973 | -6/Factory | Core integrity fell below 50% 29981 | -6/Factory | Sterilization system engaged 29981 | -6/Factory | Non-combat units ordered to evacuate 30015 | -6/Factory | Core integrity fell below 20% 30020 | -6/Factory | Destroyed by H-66 Slayer with Gauss Rifle Last Messages --------------- 30007_ G-67 Veteran Unknown Leg blasted off. 30010_ The unstable cave ceiling collapses. 30010_ 39 Matter crushed. 30010_ B-48 Gladiator destroyed. 30010_ G-67 Veteran knocked back. 30013_ Angular Momentum Engine destroyed. 30013_ I-36 Angel destroyed. 30014_ The unstable cave ceiling collapses. 30016_ G-67 Veteran destroyed. 30017_ The unstable cave ceiling collapses. 30018_ Antimatter Cannon destroyed. 30020_ The unstable cave ceiling collapses. 30020_ Critical hit (Burn: +37). 30020_ C-30 ARC bursts open, deploying its payload. 30020_ H-66 Slayer unfolds itself. 30020_ P-60 Hacker unfolds itself. 30020_ E-15 Imp unfolds itself. 30020_ Penetrated by Slug. 30020_ Antimatter Cannon destroyed. 30020_ Penetrated by Slug. Map ----- +----------------------------------------------------+ | ??????????????????????????? | | ??????????????????????????? | | ##?###????????????????????? | | " #????????????????????? | | " #????????????????????? | | #????????????????????? | | #????????????????????? | | ?????????????????????? | | !!??????????????????????? | | !!??????????????????????? | | !! ?????????????????????? | | #????????????????????? | | #????????????????????? | | #????????????????????? | | #????????????????????? | | ######????????????????????? | | ?#######??????????????????? | | ## #??????????????????? | | # """ #??????????????????? | | # "Y #??????????????##### | | # """ #######??####### # | | # # ===#### | | # # ] # # | | "# """ # ! | | "# """ + *%! g==% | | "# """ # / *= %@ | | # # %=# g =%= | | ###### %% # | | * %=%% % | | = | | /! # | | [ =%# # | | !%! he # | | # *= g%h | | % # p | | # ######" % [ ; | | # # #### # ;;# | | # % [ # | | " # [ # #### | | # # " # #[" ## ##???? | | # # " #?###[ ?????? | | # # " #? *#?????? | | # # " ## # # #?????? | | # # " ### ## #####??? | | # # " #?### #??? | | # # " #???# #??? | | # # " #???# #??? | | # # #???# #??? | | # # #???# #??? | | + ##+######## #??? | +----------------------------------------------------+ Best States ------------- Heat Dissipation 75 Energy Generation 34 Energy Capacity 515 Matter Stores 800 Matter Capacity 800 Sight Range 16 Terrain Scan Density 10 Jamming Range 12 Additional Mass Support 12 Base Temperature (-) 150 Armor Coverage 2450 Resistance: KI 40 Weapon Shielding 66 Evasion (%) 64 Recoil Reduction 4 Energy Filtering 30 Particle Charging 25 Offensive Hacking 54 Defensive Hacking 22 Authchip Count 1 Item Schematics ----------------- Cargo Storage Unit | -10/Materials | Hacked Hacking Suite | -8/Materials | Hacked Cld. VTOL Module | -7/Factory | Scanalyzed Imp. Weapon Cycler | -7/Factory | Hacked Powered Armor | -7/Factory | Hacked Arm. Treads | -7/Factory | Hacked Launcher Loader | -7/Factory | Hacked Imp. Medium Treads | -7/Factory | Hacked Hvy. Reactive Plating | -7/Factory | Hacked Hpw. Tractor Beam | -7/Factory | Hacked Combat Drone Bay | -7/Data Miner | Free Lgt. Regenerative Plating | -7/Data Miner | Free Cld. Aerolev Unit | -7/Data Miner | Free Gravity Neutralizer | -7/Data Miner | Free Imp. Lightning Gun | -7/Data Miner | Free Arm. Medium Treads | -7/Data Miner | Free Imp. Shock Absorption System | -7/Data Miner | Free Disruptor Cannon | -7/Data Miner | Free Adv. Shield Generator | -6/Factory | Hacked Hvy. Treads | -6/Factory | Hacked Lrn. Missile Launcher | -6/Factory | Hacked Imp. Proton Missile Launcher | -6/Factory | Hacked Lrn. Tractor Beam | -6/Factory | Hacked Tesla Bomb Launcher | -6/Factory | Hacked Robot Schematics ------------------ W-25 Informer | -7/Data Miner | Free G-50 Soldier | -7/Data Miner | Free O-24 Administrator | -7/Data Miner | Free S-27 Virus | -7/Data Miner | Free Fabricated ------------ Adv. Shield Generator | x2 | -7/Factory | Preloaded Powered Armor | x2 | -7/Factory Hvy. Reactive Plating | x1 | -7/Factory Imp. Medium Treads | x2 | -7/Factory HERF Cannon | x2 | -6/Factory | Preloaded Hvy. Treads | x1 | -6/Factory | Authchip Hvy. Reactive Plating | x1 | -6/Factory Lrn. Missile Launcher | x1 | -6/Factory Imp. Proton Missile Launcher | x1 | -6/Factory Repaired ---------- Lgt. Treads | 22% | -10/Materials Med. Armor Plating | 64% | -9/Materials Imp. Medium Armor Plating | 69% | -7/Factory Lyr. Heavy Armor Plating | 50% | -7/Factory Med. Reactive Plating | 56% | -7/Factory Neutron Cannon | 36% | -7/Factory Powered Armor | 18% | -6/Factory Alien Tech Used ----------------- None Achievements -------------- None Challenges ------------ None Game ------ Seed ProjectionLauncherRigger Manual? 0 Play Time 06:38:32 Cumulative 383.9 hours Start 2025.04.29 @ 17:55:46 End 2025.05.03 @ 16:55:43 Sessions 26 Manual Loads 0 Difficulty Rogue Special Mode None Game No. 197 Rogue 197 Adventurer 0 Explorer 0 Win Type - Total 16 Types 3/3/6/2/1/0/1/0/0/0 Lore% 86 Gallery% 81 Achievement% 76 Wizard Run 0 Options --------- Layout 0 ASCII 0 Keyboard 0 Movement Arrows Keybinds 0 Fullscreen 2 Font 18/SmallcapsGlow Map View 76x50 Zoom Use 0% Tactical HUD 1 Map Filters NONE Filters NONE Steam 1 RUN: 9a93698e-9dd4-4ab4-aebb-323cf9c385e0